fUST/lending_fUST_20260501
["ID","MTS","AMOUNT","RATE_DAILY","PERIOD"]
[421403557,1777565447000,-500.0,0.00019178,2]
[421403556,1777565447000,-716.81,0.00019178,2]
[421403563,1777565447000,-500.0,0.00019178,2]
[421403550,1777565447000,-500.0,0.00019178,2]
[421403560,1777565447000,-500.0,0.00019178,2]
[421403570,1777565447000,-500.0,0.00019178,2]
[421403561,1777565447000,-677.29,0.00019178,2]
[421403559,1777565447000,-1967.05,0.00019178,2]
[421403567,1777565447000,-500.0,0.00019178,2]
[421403569,1777565447000,-500.0,0.00019178,2]
[421403564,1777565447000,-500.0,0.00019178,2]
[421403562,1777565447000,-500.0,0.00019178,2]
[421403566,1777565447000,-500.0,0.00019178,2]
[421403568,1777565447000,-541.79,0.00019178,2]
[421403565,1777565447000,-536.93706396,0.00019178,2]
[421403545,1777565447000,-692.26,0.00019178,2]
[421403554,1777565447000,-22056.31,0.00019178,2]
[421403541,1777565447000,-500.0,0.00019178,2]
[421403572,1777565447000,-547.05433456,0.00019178,2]
[421403538,1777565447000,-500.0,0.00019178,2]
[421403513,1777565447000,-500.0,0.00019178,2]
[421403512,1777565447000,-500.0,0.00019178,2]
[421403519,1777565447000,-500.0,0.00019178,2]
[421403511,1777565447000,-500.0,0.00019178,2]
[421403518,1777565447000,-500.0,0.00019178,2]
[421403516,1777565447000,-7261.6,0.00019178,2]
[421403515,1777565447000,-500.0,0.00019178,2]
[421403514,1777565447000,-89933.79,0.00019178,2]
[421403520,1777565447000,-1145.6,0.00019178,2]
[421403527,1777565447000,-500.0,0.00019178,2]
[421403523,1777565447000,-500.0,0.00019178,2]
[421403531,1777565447000,-500.0,0.00019178,2]
[421403521,1777565447000,-500.0,0.00019178,2]
[421403539,1777565447000,-9216.09,0.00019178,2]
[421403532,1777565447000,-550.0,0.00019178,2]
[421403528,1777565447000,-500.0,0.00019178,2]
[421403529,1777565447000,-500.0,0.00019178,2]
[421403524,1777565447000,-500.0,0.00019178,2]
[421403525,1777565447000,-500.0,0.00019178,2]
[421403530,1777565447000,-500.0,0.00019178,2]
[421403526,1777565447000,-500.0,0.00019178,2]
[421403533,1777565447000,-500.0,0.00019178,2]
[421403534,1777565447000,-17376.81,0.00019178,2]
[421403535,1777565447000,-1207.86,0.00019178,2]
[421403537,1777565447000,-545.43163398,0.00019178,2]
[421403542,1777565447000,-4182.66,0.00019178,2]
[421403536,1777565447000,-500.0,0.00019178,2]
[421403544,1777565447000,-596.02,0.00019178,2]
[421403522,1777565447000,-5442.19,0.00019178,2]
[421403583,1777565447000,-567.61,0.00019178,2]
[421403606,1777565447000,-500.0,0.00019452,2]
[421403571,1777565447000,-809.35,0.00019178,2]
[421403603,1777565447000,-500.0,0.00019452,2]
[421403604,1777565447000,-500.0,0.00019452,2]
[421403613,1777565447000,-897.07,0.00019452,2]
[421403618,1777565447000,-500.0,0.00019452,2]
[421403610,1777565447000,-500.0,0.00019452,2]
[421403609,1777565447000,-500.0,0.00019452,2]
[421403616,1777565447000,-500.0,0.00019452,2]
[421403617,1777565447000,-1123.89,0.00019452,2]
[421403615,1777565447000,-500.0,0.00019452,2]
[421403620,1777565447000,-718.27,0.00019452,2]
[421403611,1777565447000,-1550.61,0.00019452,2]
[421403619,1777565447000,-604.7,0.00019452,2]
[421403612,1777565447000,-500.0,0.00019452,2]
[421403634,1777565447000,-500.0,0.00019452,2]
[421403614,1777565447000,-500.0,0.00019452,2]
[421403627,1777565447000,-892.8,0.00019452,2]
[421403621,1777565447000,-410.36767922,0.00019452,2]
[421403631,1777565447000,-500.0,0.00019452,2]
[421403624,1777565447000,-500.0,0.00019452,2]
[421403623,1777565447000,-500.0,0.00019452,2]
[421403630,1777565447000,-3734.36,0.00019452,2]
[421403625,1777565447000,-500.0,0.00019452,2]
[421403626,1777565447000,-500.0,0.00019452,2]
[421403629,1777565447000,-769.13,0.00019452,2]
[421403628,1777565447000,-645.23712986,0.00019452,2]
[421403635,1777565447000,-500.0,0.00019452,2]
[421403632,1777565447000,-500.0,0.00019452,2]
[421403582,1777565447000,-500.0,0.00019178,2]
[421403622,1777565447000,-1981.29,0.00019452,2]
[421403605,1777565447000,-500.0,0.00019452,2]
[421403633,1777565447000,-500.0,0.00019452,2]
[421403608,1777565447000,-159.78175981,0.00019452,2]
[421403601,1777565447000,-500.0,0.00019452,2]
[421403574,1777565447000,-18808.33,0.00019178,2]
[421403576,1777565447000,-618.57,0.00019178,2]
[421403577,1777565447000,-500.0,0.00019178,2]
[421403580,1777565447000,-500.0,0.00019178,2]
[421403575,1777565447000,-500.0,0.00019178,2]
[421403578,1777565447000,-1666.45,0.00019178,2]
[421403581,1777565447000,-500.0,0.00019178,2]
[421403579,1777565447000,-988.27,0.00019178,2]
[421403585,1777565447000,-500.0,0.00019178,2]
[421403594,1777565447000,-2751.2217,0.00019452,2]
[421403595,1777565447000,-2659.6651,0.00019452,2]
[421403589,1777565447000,-149589.45990037,0.00019404,2]
[421403584,1777565447000,-500.0,0.00019178,2]
[421403573,1777565447000,-500.0,0.00019178,2]
[421403587,1777565447000,-290.2,0.00019206,5]
[421403590,1777565447000,-290.2,0.00019405,5]
[421403607,1777565447000,-500.0,0.00019452,2]
[421403600,1777565447000,-500.0,0.00019452,2]
[421403598,1777565447000,-500.0,0.00019452,2]
[421403599,1777565447000,-500.0,0.00019452,2]
[421403597,1777565447000,-11627.52851,0.00019452,2]
[421403602,1777565447000,-500.0,0.00019452,2]
[421403593,1777565447000,-2702.5583,0.00019452,2]
[421403588,1777565447000,-191.51,0.00019315,2]
[421403586,1777565447000,-151.82375512,0.0001918,14]
[421403592,1777565447000,-858.1134,0.00019452,2]
[421403591,1777565447000,-151.82375512,0.00019438,30]
[421403596,1777565447000,-2659.6651,0.00019452,2]
[421403672,1777565448000,-608.02,0.00019452,2]
[421403674,1777565448000,-671.94,0.00019452,2]
[421403671,1777565448000,-521.55,0.00019452,2]
[421403668,1777565448000,-500.0,0.00019452,2]
[421403669,1777565448000,-535.94,0.00019452,2]
[421403666,1777565448000,-680.38,0.00019452,2]
[421403667,1777565448000,-500.0,0.00019452,2]
[421403665,1777565448000,-500.0,0.00019452,2]
[421403677,1777565448000,-1231.91,0.00019452,2]
[421403673,1777565448000,-1676.94,0.00019452,2]
[421403670,1777565448000,-500.0,0.00019452,2]
[421403664,1777565448000,-2618.92,0.00019452,2]
[421403683,1777565448000,-2993.54,0.00019452,2]
[421403676,1777565448000,-863.02,0.00019452,2]
[421403680,1777565448000,-500.0,0.00019452,2]
[421403679,1777565448000,-500.0,0.00019452,2]
[421403682,1777565448000,-1821.83,0.00019452,2]
[421403686,1777565448000,-500.0,0.00019452,2]
[421403685,1777565448000,-614.43,0.00019452,2]
[421403681,1777565448000,-500.0,0.00019452,2]
[421403678,1777565448000,-500.0,0.00019452,2]
[421403684,1777565448000,-500.0,0.00019452,2]
[421403691,1777565448000,-500.0,0.00019452,2]
[421403675,1777565448000,-602.82955413,0.00019452,2]
[421403688,1777565448000,-500.0,0.00019452,2]
[421403687,1777565448000,-1284.0,0.00019452,2]
[421403659,1777565448000,-573.76,0.00019452,2]
[421403644,1777565448000,-500.0,0.00019452,2]
[421403660,1777565448000,-500.0,0.00019452,2]
[421403696,1777565448000,-1051.59,0.00019452,2]
[421403640,1777565448000,-1142.41,0.00019452,2]
[421403638,1777565448000,-417.47955695,0.00019452,2]
[421403637,1777565448000,-577.75,0.00019452,2]
[421403641,1777565448000,-500.0,0.00019452,2]
[421403642,1777565448000,-1159.28,0.00019452,2]
[421403639,1777565448000,-708.51,0.00019452,2]
[421403636,1777565448000,-3572.28,0.00019452,2]
[421403649,1777565448000,-676.38,0.00019452,2]
[421403646,1777565448000,-1343.58,0.00019452,2]
[421403652,1777565448000,-500.0,0.00019452,2]
[421403643,1777565448000,-1167.77,0.00019452,2]
[421403650,1777565448000,-769.83,0.00019452,2]
[421403645,1777565448000,-500.0,0.00019452,2]
[421403647,1777565448000,-500.0,0.00019452,2]
[421403651,1777565448000,-500.0,0.00019452,2]
[421403648,1777565448000,-500.0,0.00019452,2]
[421403654,1777565448000,-500.0,0.00019452,2]
[421403653,1777565448000,-769.52,0.00019452,2]
[421403658,1777565448000,-500.0,0.00019452,2]
[421403663,1777565448000,-500.0,0.00019452,2]
[421403655,1777565448000,-534.97,0.00019452,2]
[421403657,1777565448000,-617.92,0.00019452,2]
[421403662,1777565448000,-500.0,0.00019452,2]
[421403656,1777565448000,-500.0,0.00019452,2]
[421403661,1777565448000,-500.0,0.00019452,2]
[421403699,1777565448000,-500.0,0.00019452,2]
[421403698,1777565448000,-500.0,0.00019452,2]
[421403697,1777565448000,-325.15944208,0.00019452,2]
[421403725,1777565448000,-500.0,0.00019452,2]
[421403724,1777565448000,-783.0,0.00019452,2]
[421403726,1777565448000,-500.0,0.00019452,2]
[421403727,1777565448000,-500.0,0.00019452,2]
[421403728,1777565448000,-500.0,0.00019452,2]
[421403732,1777565448000,-779.06,0.00019452,2]
[421403731,1777565448000,-665.33,0.00019452,2]
[421403736,1777565448000,-540.22058628,0.00019452,2]
[421403729,1777565448000,-500.0,0.00019452,2]
[421403735,1777565448000,-500.0,0.00019452,2]
[421403741,1777565448000,-1623.62,0.00019452,2]
[421403733,1777565448000,-500.0,0.00019452,2]
[421403734,1777565448000,-1227.42,0.00019452,2]
[421403737,1777565448000,-500.0,0.00019452,2]
[421403738,1777565448000,-500.0,0.00019452,2]
[421403745,1777565448000,-500.0,0.00019452,2]
[421403730,1777565448000,-577.08,0.00019452,2]
[421403739,1777565448000,-1876.15,0.00019452,2]
[421403744,1777565448000,-456.17787217,0.00019452,2]
[421403742,1777565448000,-878.82,0.00019452,2]
[421403743,1777565448000,-500.0,0.00019452,2]
[421403740,1777565448000,-590.93,0.00019452,2]
[421403693,1777565448000,-500.0,0.00019452,2]
[421403748,1777565448000,-1910.55,0.00019452,2]
[421403746,1777565448000,-500.0,0.00019452,2]
[421403722,1777565448000,-500.0,0.00019452,2]
[421403723,1777565448000,-588.39,0.00019452,2]
[421403747,1777565448000,-2720.85,0.00019452,2]
[421403721,1777565448000,-158.20186732,0.00019452,2]
[421403719,1777565448000,-2041.18,0.00019452,2]
[421403694,1777565448000,-957.6,0.00019452,2]
[421403690,1777565448000,-500.0,0.00019452,2]
[421403689,1777565448000,-500.0,0.00019452,2]
[421403695,1777565448000,-500.0,0.00019452,2]
[421403692,1777565448000,-500.0,0.00019452,2]
[421403702,1777565448000,-629.65,0.00019452,2]
[421403711,1777565448000,-500.0,0.00019452,2]
[421403701,1777565448000,-500.0,0.00019452,2]
[421403708,1777565448000,-500.0,0.00019452,2]
[421403703,1777565448000,-500.0,0.00019452,2]
[421403705,1777565448000,-500.0,0.00019452,2]
[421403700,1777565448000,-500.0,0.00019452,2]
[421403707,1777565448000,-759.87,0.00019452,2]
[421403714,1777565448000,-500.0,0.00019452,2]
[421403715,1777565448000,-500.0,0.00019452,2]
[421403720,1777565448000,-500.0,0.00019452,2]
[421403709,1777565448000,-500.0,0.00019452,2]
[421403717,1777565448000,-500.0,0.00019452,2]
[421403718,1777565448000,-500.0,0.00019452,2]
[421403716,1777565448000,-500.0,0.00019452,2]
[421403710,1777565448000,-500.0,0.00019452,2]
[421403704,1777565448000,-500.0,0.00019452,2]
[421403712,1777565448000,-500.0,0.00019452,2]
[421403706,1777565448000,-500.0,0.00019452,2]
[421403713,1777565448000,-500.0,0.00019452,2]
[421403785,1777565449000,-905.98,0.00019452,2]
[421403784,1777565449000,-500.0,0.00019452,2]
[421403793,1777565449000,-500.0,0.00019452,2]
[421403782,1777565449000,-621.94,0.00019452,2]
[421403780,1777565449000,-868.89,0.00019452,2]
[421403770,1777565449000,-500.0,0.00019452,2]
[421403774,1777565449000,-500.0,0.00019452,2]
[421403777,1777565449000,-840.62,0.00019452,2]
[421403775,1777565449000,-500.0,0.00019452,2]
[421403778,1777565449000,-1111.4,0.00019452,2]
[421403783,1777565449000,-500.0,0.00019452,2]
[421403791,1777565449000,-500.0,0.00019452,2]
[421403787,1777565449000,-602.00209187,0.00019452,2]
[421403792,1777565449000,-638.05,0.00019452,2]
[421403789,1777565449000,-500.0,0.00019452,2]
[421403788,1777565449000,-763.94,0.00019452,2]
[421403790,1777565449000,-500.0,0.00019452,2]
[421403797,1777565449000,-500.0,0.00019452,2]
[421403804,1777565449000,-500.0,0.00019452,2]
[421403805,1777565449000,-780.69,0.00019452,2]
[421403795,1777565449000,-500.0,0.00019452,2]
[421403773,1777565449000,-537.28,0.00019452,2]
[421403800,1777565449000,-500.0,0.00019452,2]
[421403786,1777565449000,-1163.54,0.00019452,2]
[421403772,1777565449000,-500.0,0.00019452,2]
[421403760,1777565449000,-1091.48,0.00019452,2]
[421403781,1777565449000,-500.0,0.00019452,2]
[421403801,1777565449000,-500.0,0.00019452,2]
[421403750,1777565449000,-500.0,0.00019452,2]
[421403755,1777565449000,-500.0,0.00019452,2]
[421403756,1777565449000,-1076.12,0.00019452,2]
[421403749,1777565449000,-500.0,0.00019452,2]
[421403751,1777565449000,-500.0,0.00019452,2]
[421403757,1777565449000,-514.37,0.00019452,2]
[421403753,1777565449000,-500.0,0.00019452,2]
[421403752,1777565449000,-500.0,0.00019452,2]
[421403754,1777565449000,-500.0,0.00019452,2]
[421403763,1777565449000,-500.0,0.00019452,2]
[421403758,1777565449000,-1090.61,0.00019452,2]
[421403769,1777565449000,-500.0,0.00019452,2]
[421403761,1777565449000,-500.0,0.00019452,2]
[421403759,1777565449000,-500.0,0.00019452,2]
[421403764,1777565449000,-592.78,0.00019452,2]
[421403762,1777565449000,-655.88,0.00019452,2]
[421403765,1777565449000,-500.0,0.00019452,2]
[421403768,1777565449000,-500.0,0.00019452,2]
[421403766,1777565449000,-500.0,0.00019452,2]
[421403767,1777565449000,-658.42,0.00019452,2]
[421403779,1777565449000,-156.079717,0.00019452,2]
[421403776,1777565449000,-528.52766106,0.00019452,2]
[421403771,1777565449000,-500.0,0.00019452,2]
[421403796,1777565449000,-500.0,0.00019452,2]
[421403808,1777565449000,-500.0,0.00019452,2]
[421403798,1777565449000,-845.67,0.00019452,2]
[421403831,1777565449000,-2462.87,0.00019452,2]
[421403833,1777565449000,-515.1913855,0.00019452,2]
[421403839,1777565449000,-500.0,0.00019452,2]
[421403840,1777565449000,-500.0,0.00019452,2]
[421403838,1777565449000,-812.85,0.00019452,2]
[421403845,1777565449000,-500.0,0.00019452,2]
[421403832,1777565449000,-500.0,0.00019452,2]
[421403834,1777565449000,-500.0,0.00019452,2]
[421403843,1777565449000,-500.0,0.00019452,2]
[421403850,1777565449000,-500.0,0.00019452,2]
[421403836,1777565449000,-500.0,0.00019452,2]
[421403841,1777565449000,-500.0,0.00019452,2]
[421403835,1777565449000,-1468.71,0.00019452,2]
[421403849,1777565449000,-1112.91,0.00019452,2]
[421403842,1777565449000,-500.0,0.00019452,2]
[421403846,1777565449000,-451.60849701,0.00019452,2]
[421403847,1777565449000,-500.0,0.00019452,2]
[421403837,1777565449000,-500.0,0.00019452,2]
[421403851,1777565449000,-500.0,0.00019452,2]
[421403852,1777565449000,-651.45,0.00019452,2]
[421403844,1777565449000,-500.0,0.00019452,2]
[421403848,1777565449000,-500.0,0.00019452,2]
[421403854,1777565449000,-5137.13,0.00019452,2]
[421403824,1777565449000,-500.0,0.00019452,2]
[421403826,1777565449000,-681.09,0.00019452,2]
[421403799,1777565449000,-500.0,0.00019452,2]
[421403820,1777565449000,-500.0,0.00019452,2]
[421403818,1777565449000,-500.0,0.00019452,2]
[421403794,1777565449000,-500.0,0.00019452,2]
[421403803,1777565449000,-500.0,0.00019452,2]
[421403802,1777565449000,-754.094229,0.00019452,2]
[421403806,1777565449000,-500.0,0.00019452,2]
[421403809,1777565449000,-500.0,0.00019452,2]
[421403853,1777565449000,-500.0,0.00019452,2]
[421403817,1777565449000,-500.0,0.00019452,2]
[421403810,1777565449000,-7634.22,0.00019452,2]
[421403813,1777565449000,-500.0,0.00019452,2]
[421403814,1777565449000,-500.0,0.00019452,2]
[421403812,1777565449000,-699.85,0.00019452,2]
[421403807,1777565449000,-500.0,0.00019452,2]
[421403815,1777565449000,-736.25,0.00019452,2]
[421403816,1777565449000,-500.0,0.00019452,2]
[421403819,1777565449000,-3283.06,0.00019452,2]
[421403829,1777565449000,-2140.83,0.00019452,2]
[421403827,1777565449000,-500.0,0.00019452,2]
[421403830,1777565449000,-500.0,0.00019452,2]
[421403823,1777565449000,-932.07,0.00019452,2]
[421403822,1777565449000,-509.37,0.00019452,2]
[421403821,1777565449000,-500.0,0.00019452,2]
[421403825,1777565449000,-639.65416752,0.00019452,2]
[421403828,1777565449000,-500.0,0.00019452,2]
[421403811,1777565449000,-500.0,0.00019452,2]
[421403890,1777565450000,-500.0,0.00019452,2]
[421403889,1777565450000,-500.0,0.00019452,2]
[421403888,1777565450000,-770.05,0.00019452,2]
[421403887,1777565450000,-500.0,0.00019452,2]
[421403884,1777565450000,-585.02,0.00019452,2]
[421403896,1777565450000,-500.0,0.00019452,2]
[421403883,1777565450000,-500.0,0.00019452,2]
[421403881,1777565450000,-500.0,0.00019452,2]
[421403891,1777565450000,-897.62,0.00019452,2]
[421403893,1777565450000,-500.0,0.00019452,2]
[421403894,1777565450000,-500.0,0.00019452,2]
[421403904,1777565450000,-2232.23,0.00019452,2]
[421403897,1777565450000,-500.0,0.00019452,2]
[421403895,1777565450000,-500.0,0.00019452,2]
[421403909,1777565450000,-3207.16,0.00019452,2]
[421403899,1777565450000,-538.16815605,0.00019452,2]
[421403898,1777565450000,-500.0,0.00019452,2]
[421403900,1777565450000,-1812.59,0.00019452,2]
[421403903,1777565450000,-1095.81,0.00019452,2]
[421403906,1777565450000,-500.0,0.00019452,2]
[421403907,1777565450000,-500.0,0.00019452,2]
[421403902,1777565450000,-500.0,0.00019452,2]
[421403882,1777565450000,-777.12,0.00019452,2]
[421403892,1777565450000,-500.0,0.00019452,2]
[421403880,1777565450000,-933.58,0.00019452,2]
[421403865,1777565450000,-500.0,0.00019452,2]
[421403879,1777565450000,-1267.18,0.00019452,2]
[421403905,1777565450000,-1008.35,0.00019452,2]
[421403857,1777565450000,-500.0,0.00019452,2]
[421403863,1777565450000,-709.66,0.00019452,2]
[421403856,1777565450000,-500.0,0.00019452,2]
[421403860,1777565450000,-500.0,0.00019452,2]
[421403855,1777565450000,-2064.86,0.00019452,2]
[421403862,1777565450000,-2438.5,0.00019452,2]
[421403861,1777565450000,-500.0,0.00019452,2]
[421403859,1777565450000,-500.0,0.00019452,2]
[421403858,1777565450000,-437.87788824,0.00019452,2]
[421403866,1777565450000,-2240.72,0.00019452,2]
[421403878,1777565450000,-500.0,0.00019452,2]
[421403867,1777565450000,-500.0,0.00019452,2]
[421403868,1777565450000,-500.0,0.00019452,2]
[421403869,1777565450000,-500.0,0.00019452,2]
[421403872,1777565450000,-500.0,0.00019452,2]
[421403873,1777565450000,-3823.36,0.00019452,2]
[421403875,1777565450000,-500.0,0.00019452,2]
[421403870,1777565450000,-500.0,0.00019452,2]
[421403874,1777565450000,-500.0,0.00019452,2]
[421403885,1777565450000,-500.0,0.00019452,2]
[421403886,1777565450000,-561.02566828,0.00019452,2]
[421403877,1777565450000,-500.0,0.00019452,2]
[421403876,1777565450000,-581.24,0.00019452,2]
[421403871,1777565450000,-500.0,0.00019452,2]
[421403864,1777565450000,-1468.42,0.00019452,2]
[421403908,1777565450000,-500.0,0.00019452,2]
[421403919,1777565450000,-500.0,0.00019452,2]
[421403940,1777565450000,-500.0,0.00019452,2]
[421403938,1777565450000,-500.0,0.00019452,2]
[421403937,1777565450000,-500.0,0.00019452,2]
[421403939,1777565450000,-500.0,0.00019452,2]
[421403942,1777565450000,-500.0,0.00019452,2]
[421403951,1777565450000,-500.0,0.00019452,2]
[421403957,1777565450000,-3363.8,0.00019452,2]
[421403944,1777565450000,-755.51,0.00019452,2]
[421403955,1777565450000,-500.0,0.00019452,2]
[421403949,1777565450000,-500.0,0.00019452,2]
[421403960,1777565450000,-500.0,0.00019452,2]
[421403941,1777565450000,-1483.63,0.00019452,2]
[421403950,1777565450000,-500.0,0.00019452,2]
[421403948,1777565450000,-1019.09,0.00019452,2]
[421403961,1777565450000,-500.0,0.00019452,2]
[421403947,1777565450000,-1217.48,0.00019452,2]
[421403952,1777565450000,-500.0,0.00019452,2]
[421403954,1777565450000,-759.32,0.00019452,2]
[421403958,1777565450000,-500.0,0.00019452,2]
[421403945,1777565450000,-500.0,0.00019452,2]
[421403953,1777565450000,-500.0,0.00019452,2]
[421403962,1777565450000,-500.0,0.00019452,2]
[421403946,1777565450000,-500.0,0.00019452,2]
[421403901,1777565450000,-500.0,0.00019452,2]
[421403959,1777565450000,-500.0,0.00019452,2]
[421403934,1777565450000,-500.0,0.00019452,2]
[421403956,1777565450000,-500.0,0.00019452,2]
[421403936,1777565450000,-500.0,0.00019452,2]
[421403910,1777565450000,-769.46,0.00019452,2]
[421403912,1777565450000,-500.0,0.00019452,2]
[421403920,1777565450000,-1788.51,0.00019452,2]
[421403911,1777565450000,-500.0,0.00019452,2]
[421403914,1777565450000,-500.0,0.00019452,2]
[421403913,1777565450000,-500.0,0.00019452,2]
[421403935,1777565450000,-500.0,0.00019452,2]
[421403915,1777565450000,-832.02,0.00019452,2]
[421403918,1777565450000,-500.0,0.00019452,2]
[421403917,1777565450000,-2523.01,0.00019452,2]
[421403922,1777565450000,-1693.54,0.00019452,2]
[421403921,1777565450000,-232.70437561,0.00019452,2]
[421403916,1777565450000,-977.51,0.00019452,2]
[421403928,1777565450000,-1421.48,0.00019452,2]
[421403929,1777565450000,-500.0,0.00019452,2]
[421403924,1777565450000,-536.8,0.00019452,2]
[421403926,1777565450000,-1589.62,0.00019452,2]
[421403925,1777565450000,-500.0,0.00019452,2]
[421403930,1777565450000,-4584.18,0.00019452,2]
[421403931,1777565450000,-1279.27,0.00019452,2]
[421403927,1777565450000,-3788.41,0.00019452,2]
[421403933,1777565450000,-7615.09,0.00019452,2]
[421403943,1777565450000,-500.0,0.00019452,2]
[421403932,1777565450000,-1490.43,0.00019452,2]
[421403923,1777565450000,-500.0,0.00019452,2]
[421404008,1777565451000,-500.0,0.00019452,2]
[421404002,1777565451000,-500.0,0.00019452,2]
[421403999,1777565451000,-500.0,0.00019452,2]
[421403997,1777565451000,-500.0,0.00019452,2]
[421403989,1777565451000,-544.19,0.00019452,2]
[421403996,1777565451000,-500.0,0.00019452,2]
[421403992,1777565451000,-1198.57,0.00019452,2]
[421403995,1777565451000,-500.0,0.00019452,2]
[421403991,1777565451000,-500.0,0.00019452,2]
[421403994,1777565451000,-4886.46,0.00019452,2]
[421404007,1777565451000,-500.0,0.00019452,2]
[421404017,1777565451000,-1000.8,0.00019452,2]
[421404006,1777565451000,-1028.33,0.00019452,2]
[421404009,1777565451000,-500.0,0.00019452,2]
[421404003,1777565451000,-500.0,0.00019452,2]
[421404001,1777565451000,-5857.18,0.00019452,2]
[421403998,1777565451000,-898.82,0.00019452,2]
[421404004,1777565451000,-500.0,0.00019452,2]
[421404005,1777565451000,-500.0,0.00019452,2]
[421404010,1777565451000,-500.0,0.00019452,2]
[421404012,1777565451000,-500.0,0.00019452,2]
[421404013,1777565451000,-576.41,0.00019452,2]
[421403987,1777565451000,-1450.99,0.00019452,2]
[421404000,1777565451000,-500.0,0.00019452,2]
[421403993,1777565451000,-500.0,0.00019452,2]
[421403981,1777565451000,-500.0,0.00019452,2]
[421403986,1777565451000,-557.92500432,0.00019452,2]
[421403963,1777565451000,-500.0,0.00019452,2]
[421403965,1777565451000,-500.0,0.00019452,2]
[421403964,1777565451000,-500.0,0.00019452,2]
[421403968,1777565451000,-500.0,0.00019452,2]
[421404014,1777565451000,-500.0,0.00019452,2]
[421403971,1777565451000,-775.17,0.00019452,2]
[421403966,1777565451000,-1277.97,0.00019452,2]
[421403967,1777565451000,-500.0,0.00019452,2]
[421403973,1777565451000,-500.0,0.00019452,2]
[421403972,1777565451000,-500.0,0.00019452,2]
[421403969,1777565451000,-543.2,0.00019452,2]
[421403975,1777565451000,-746.36,0.00019452,2]
[421403985,1777565451000,-689.28,0.00019452,2]
[421403978,1777565451000,-500.0,0.00019452,2]
[421403974,1777565451000,-500.0,0.00019452,2]
[421403977,1777565451000,-7621.59,0.00019452,2]
[421403976,1777565451000,-176.04469662,0.00019452,2]
[421403983,1777565451000,-578.87200227,0.00019452,2]
[421403980,1777565451000,-500.0,0.00019452,2]
[421403979,1777565451000,-500.0,0.00019452,2]
[421403984,1777565451000,-617.53,0.00019452,2]
[421403982,1777565451000,-711.71,0.00019452,2]
[421403988,1777565451000,-509.67,0.00019452,2]
[421403990,1777565451000,-275.28902717,0.00019452,2]
[421404021,1777565451000,-500.0,0.00019452,2]
[421403970,1777565451000,-2864.75,0.00019452,2]
[421404020,1777565451000,-1537.71,0.00019452,2]
[421404045,1777565451000,-500.0,0.00019452,2]
[421404048,1777565451000,-709.38,0.00019452,2]
[421404051,1777565451000,-695.1,0.00019452,2]
[421404050,1777565451000,-500.0,0.00019452,2]
[421404047,1777565451000,-3826.67,0.00019452,2]
[421404049,1777565451000,-500.0,0.00019452,2]